{"text_format":"1","workbook":"xlsx","n_sheets":2,"sheets":["Баға ұсынысы туралы мәліметтер","Жиынтық"],"not_rendered":{"charts":1,"images":1,"macros":0,"external_links":0,"defined_names":1,"comments":0,"pivot_tables":1},"unopened":[],"bounds":{"document_bytes":16777216,"sheet_cells":100000,"rows_first":2000,"rows_last":500,"rows_between":2000,"halvings":0,"cell_chars":16384,"cell_head_chars":4096},"cells_cut":0,"cells_raw":0,"read":"whole","date_system":"1900"}

{"sheet":"Баға ұсынысы туралы мәліметтер","index":0,"n_rows":9,"n_cols":8,"rows_kept":9,"cut":false,"hidden":false,"merged":[]}
[null,"Баға ұсынысы туралы мәліметтер"]
[null,"ҰСЫНЫС БАҒА НӨМІРІ","СИПАТТАМА","АЛЫНҒАН КҮНІ","МӨЛШЕРІ","АЯҚТАЛУ ПАЙЫЗЫ","МЕРЗІМ","ҚАЛҒАН КҮН"]
[null,1,"Нөмірі 1-ші баға ұсынысы",{"$f":"TODAY()-10","v":"2012-10-29"},2000,0.5,{"$f":"BidInfo[[#This Row],[АЛЫНҒАН КҮНІ]]+30","v":"2012-11-28"},{"$f":"BidInfo[[#This Row],[МЕРЗІМ]]-TODAY()","v":20}]
[null,2,"Нөмірі 2-ші баға ұсынысы",{"$f":"TODAY()-20","v":"2012-10-19"},3500,0.25,{"$f":"BidInfo[[#This Row],[АЛЫНҒАН КҮНІ]]+30","v":"2012-11-18"},{"$f":"BidInfo[[#This Row],[МЕРЗІМ]]-TODAY()","v":10}]
[null,3,"Нөмірі 3-ші баға ұсынысы",{"$f":"TODAY()-20","v":"2012-10-19"},5000,0.3,{"$f":"BidInfo[[#This Row],[АЛЫНҒАН КҮНІ]]+30","v":"2012-11-18"},{"$f":"BidInfo[[#This Row],[МЕРЗІМ]]-TODAY()","v":10}]
[null,4,"Нөмірі 4-ші баға ұсынысы",{"$f":"TODAY()-10","v":"2012-10-29"},4000,0.2,{"$f":"BidInfo[[#This Row],[АЛЫНҒАН КҮНІ]]+30","v":"2012-11-28"},{"$f":"BidInfo[[#This Row],[МЕРЗІМ]]-TODAY()","v":20}]
[null,5,"Нөмірі 5-ші баға ұсынысы",{"$f":"TODAY()-28","v":"2012-10-11"},4000,0.75,{"$f":"BidInfo[[#This Row],[АЛЫНҒАН КҮНІ]]+30","v":"2012-11-10"},{"$f":"BidInfo[[#This Row],[МЕРЗІМ]]-TODAY()","v":2}]
[null,6,"Нөмірі 6-ші баға ұсынысы",{"$f":"TODAY()-17","v":"2012-10-22"},1500,0.45,{"$f":"BidInfo[[#This Row],[АЛЫНҒАН КҮНІ]]+30","v":"2012-11-21"},{"$f":"BidInfo[[#This Row],[МЕРЗІМ]]-TODAY()","v":13}]
[null,7,"Нөмірі 7-ші баға ұсынысы",{"$f":"TODAY()-15","v":"2012-10-24"},5000,0.65,{"$f":"BidInfo[[#This Row],[АЛЫНҒАН КҮНІ]]+30","v":"2012-11-23"},{"$f":"BidInfo[[#This Row],[МЕРЗІМ]]-TODAY()","v":15}]

{"sheet":"Жиынтық","index":1,"n_rows":16,"n_cols":4,"rows_kept":16,"cut":false,"hidden":false,"merged":[]}
[null,"Баға ұсыныстары бойынша қалған күн"]
[]
[]
[]
[]
[]
[]
[]
[null,null,"ҰСЫНЫС БАҒА НӨМІРІ","ҚАЛҒАН КҮН "]
[null,null,1,20]
[null,null,2,10]
[null,null,3,10]
[null,null,4,20]
[null,null,5,2]
[null,null,6,13]
[null,null,7,15]